[Event "EYCC Open U8 2018"]
[Site "Riga"]
[Date "2018.08.26"]
[Round "6"]
[White "Zverev, Lev"]
[Black "Jaakkola, Niklas"]
[Result "1/2-1/2"]
[ECO "B07"]
[WhiteElo "1682"]
[BlackElo "1352"]
[Annotator "NA"]
[PlyCount "146"]
[EventDate "2018.08.20"]
[EventType "swiss"]
[EventCountry "LAT"]
[SourceTitle "playchess.com"]
[Source "ChessBase"]
[SourceQuality "1"]
[TimeControl "40/5400+30:1800+30"]

1. e4 {[%emt 0:00:00]} d6 {[%emt 0:00:00]} 2. d4 {[%emt 0:00:00]} Nf6 {[%emt 0:00:00]} 3. Nc3 {[%emt 0:00:00]} g6 {[%emt 0:00:07]} 4. f3 {[%emt 0:00:08]} c5 {[%emt 0:00:40]} 5. dxc5 {[%emt 0:00:31]} dxc5 {[%emt 0:00:13]} 6. Qxd8+ {[%emt 0:00:09]} Kxd8 {[%emt 0:00:32]} 7. Be3 {[%emt 0:00:06]} e5 {[%emt 0:06:55]} 8. O-O-O+ {[%emt 0:00:38]} Nbd7 {[%emt 0:05:10]} 9. Bc4 {[%emt 0:00:53]} Ke7 {[%emt 0:09:29]} 10. Bg5 {[%emt 0:00:14]} Bg7 {[%emt 0:07:34]} 11. Nd5+ {[%emt 0:15:36]} Kf8 {[%emt 0:00:54]} 12. Bb5 {[%emt 0:00:45]} h6 {[%emt 0:09:35]} 13. Be3 {[%emt 0:14:43]} b6 {[%emt 0:05:22]} 14. Nc7 {[%emt 0:02:28]} Rb8 {[%emt 0:00:19]} 15. Ne2 {[%emt 0:02:47]} Ke7 {[%emt 0:06:07]} 16. Nc3 {[%emt 0:00:06]} Bb7 {[%emt 0:00:28]} 17. Rd2 {[%emt 0:06:58]} Rbc8 {[%emt 0:02:33]} 18. Bxd7 {[%emt 0:00:13]} Rxc7 {[%emt 0:00:35]} 19. Bh3 {[%emt 0:00:34]} a6 {[%emt 0:02:43]} 20. Na4 {[%emt 0:00:08]} g5 {[%emt 0:03:01]} 21. Bf5 {[%emt 0:00:27]} Rd8 {[%emt 0:15:29]} 22. Rxd8 {[%emt 0:01:07]} Kxd8 {[%emt 0:00:13]} 23. Rd1+ {[%emt 0:00:08]} Ke8 {[%emt 0:00:56]} 24. Nxb6 {[%emt 0:00:08]} Bf8 {[%emt 0:00:19]} 25. Nc4 {[%emt 0:00:09]} Nd7 {[%emt 0:01:13]} 26. Bxd7+ {[%emt 0:01:45]} Rxd7 {[%emt 0:00:08]} 27. Nxe5 {[%emt 0:00:46]} Rxd1+ {[%emt 0:00:12]} 28. Kxd1 {[%emt 0:00:07]} Bd6 {[%emt 0:00:54]} 29. Ng4 {[%emt 0:00:47]} Bf8 {[%emt 0:00:47]} 30. Kd2 {[%emt 0:01:42]} Bc8 {[%emt 0:00:15]} 31. Nf6+ {[%emt 0:00:09]} Kd8 {[%emt 0:00:09]} 32. Kd3 {[%emt 0:00:16]} Kc7 {[%emt 0:00:19]} 33. g3 {[%emt 0:01:40]} Kc6 {[%emt 0:05:54]} 34. f4 {[%emt 0:05:17]} gxf4 {[%emt 0:01:53]} 35. gxf4 {[%emt 0:00:08]} Bg7 {[%emt 0:00:12]} 36. Nd5 {[%emt 0:00:06]} Be6 {[%emt 0:01:05]} 37. Nc3 {[%emt 0:00:30]} Bg4 {[%emt 0:05:03]} 38. f5 {[%emt 0:03:53]} Be5 {[%emt 0:00:30]} 39. Bxh6 {[%emt 0:00:13]} Bxh2 {[%emt 0:00:59]} 40. Bg7 {[%emt 0:00:00]} Bh3 {[%emt 0:00:00]} 41. Ke3 {[%emt 0:01:59]} Bg4 {[%emt 0:05:44]} 42. Nd5 {[%emt 0:00:32]} Bh3 {[%emt 0:07:20]} 43. Nf4 {[%emt 0:01:05]} Bg4 {[%emt 0:01:18]} 44. Ne2 {[%emt 0:01:29]} Kd6 {[%emt 0:01:30]} 45. Bc3 {[%emt 0:01:47]} Kc6 {[%emt 0:00:57]} 46. Kf2 {[%emt 0:00:51]} Kd7 {[%emt 0:03:03]} 47. Bf6 {[%emt 0:01:03]} Kd6 {[%emt 0:00:48]} 48. Ng3 {[%emt 0:01:00]} Bd1 {[%emt 0:01:22]} 49. Kg2 {[%emt 0:00:06]} Bxg3 {[%emt 0:00:11]} 50. Kxg3 {[%emt 0:00:06]} Bxc2 {[%emt 0:00:05]} 51. Kf4 {[%emt 0:00:06]} Bb1 {[%emt 0:00:30]} 52. a3 {[%emt 0:00:12]} Ba2 {[%emt 0:00:33]} 53. Bg7 {[%emt 0:00:11]} Ke7 {[%emt 0:00:36]} 54. Ke5 {[%emt 0:01:25]} Bb3 {[%emt 0:00:09]} 55. Bf6+ {[%emt 0:00:10]} Kd7 {[%emt 0:00:41]} 56. Bg5 {[%emt 0:00:17]} a5 {[%emt 0:00:42]} 57. Be3 {[%emt 0:00:28]} a4 {[%emt 0:02:37]} 58. Bxc5 {[%emt 0:00:15]} Ba2 {[%emt 0:00:28]} 59. Kf6 {[%emt 0:00:16]} Bb3 {[%emt 0:02:01]} 60. Bd4 {[%emt 0:01:05]} Ke8 {[%emt 0:00:21]} 61. e5 {[%emt 0:00:11]} Kf8 {[%emt 0:00:52]} 62. Bc5+ {[%emt 0:00:18]} Ke8 {[%emt 0:00:15]} 63. Kg7 {[%emt 0:00:08]} Bc4 {[%emt 0:02:42]} 64. b4 {[%emt 0:00:36]} axb3 {[%emt 0:00:28]} 65. Bd4 {[%emt 0:00:05]} Kd7 {[%emt 0:00:33]} 66. Bb2 {[%emt 0:03:56]} Kc6 {[%emt 0:00:35]} 67. Kf6 {[%emt 0:00:19]} Kd7 {[%emt 0:00:45]} 68. a4 {[%emt 0:00:59]} Kc6 {[%emt 0:00:38]} 69. Ke7 {[%emt 0:00:40]} Kc5 {[%emt 0:00:19]} 70. Bc3 {[%emt 0:00:47]} b2 {[%emt 0:00:21]} 71. Bxb2 {[%emt 0:00:13]} Kb4 {[%emt 0:00:05]} 72. e6 {[%emt 0:03:31]} Bxe6 {[%emt 0:00:36]} 73. fxe6 {[%emt 0:00:04]} fxe6 {[%emt 0:00:03]} 1/2-1/2

[Event "EYCC Open U8 2018"]
[Site "Riga"]
[Date "2018.08.26"]
[Round "6"]
[White "Lebedev, Artem S"]
[Black "Golovchenko, Bogdan"]
[Result "0-1"]
[ECO "B20"]
[WhiteElo "1334"]
[BlackElo "1560"]
[Annotator "NA"]
[PlyCount "104"]
[EventDate "2018.08.20"]
[EventType "swiss"]
[EventCountry "LAT"]
[SourceTitle "playchess.com"]
[Source "ChessBase"]
[SourceQuality "1"]
[TimeControl "40/5400+30:1800+30"]

1. e4 {[%emt 0:00:00]} c5 {[%emt 0:00:00]} 2. b4 {[%emt 0:00:00]} d6 {[%emt 0:01:24]} 3. bxc5 {[%emt 0:01:05]} dxc5 {[%emt 0:00:07]} 4. Nc3 {[%emt 0:02:20]} Nc6 {[%emt 0:00:42]} 5. Nf3 {[%emt 0:02:29]} g6 {[%emt 0:01:01]} 6. Bc4 {[%emt 0:01:35]} Bg7 {[%emt 0:00:32]} 7. Bb2 {[%emt 0:05:21]} Nf6 {[%emt 0:01:04]} 8. Rb1 {[%emt 0:01:09]} O-O {[%emt 0:00:47]} 9. O-O {[%emt 0:01:43]} a6 {[%emt 0:02:21]} 10. a4 {[%emt 0:00:48]} Bg4 {[%emt 0:03:07]} 11. Be2 {[%emt 0:00:28]} Bxf3 {[%emt 0:00:35]} 12. Bxf3 {[%emt 0:00:11]} Nd4 {[%emt 0:00:09]} 13. d3 {[%emt 0:01:57]} Nd7 {[%emt 0:12:14]} 14. Re1 {[%emt 0:02:23]} Nxf3+ {[%emt 0:02:27]} 15. Qxf3 {[%emt 0:00:13]} Qa5 {[%emt 0:00:16]} 16. d4 {[%emt 0:02:54]} Bxd4 {[%emt 0:02:55]} 17. Red1 {[%emt 0:02:54]} Ne5 {[%emt 0:13:29]} 18. Qg3 {[%emt 0:01:48]} Nc4 {[%emt 0:01:06]} 19. Rxd4 {[%emt 0:00:57]} cxd4 {[%emt 0:00:16]} 20. Nd5 {[%emt 0:00:10]} Nxb2 {[%emt 0:00:59]} 21. Qe5 {[%emt 0:00:12]} Qxd5 {[%emt 0:04:25]} 22. Qxd5 {[%emt 0:00:26]} Nxa4 {[%emt 0:00:30]} 23. Qxd4 {[%emt 0:02:15]} b5 {[%emt 0:00:13]} 24. h3 {[%emt 0:00:16]} Rac8 {[%emt 0:01:32]} 25. Qd3 {[%emt 0:01:14]} Rfd8 {[%emt 0:00:17]} 26. Qa3 {[%emt 0:01:24]} Rd7 {[%emt 0:00:47]} 27. Qg3 {[%emt 0:02:26]} Nc3 {[%emt 0:00:18]} 28. Re1 {[%emt 0:00:29]} Rd1 {[%emt 0:00:47]} 29. Qe3 {[%emt 0:00:35]} Rxe1+ {[%emt 0:00:21]} 30. Qxe1 {[%emt 0:00:09]} a5 {[%emt 0:00:07]} 31. f4 {[%emt 0:01:34]} a4 {[%emt 0:00:15]} 32. f5 {[%emt 0:00:26]} a3 {[%emt 0:00:43]} 33. fxg6 {[%emt 0:01:43]} hxg6 {[%emt 0:00:05]} 34. e5 {[%emt 0:00:51]} a2 {[%emt 0:00:39]} 35. e6 {[%emt 0:00:37]} f6 {[%emt 0:00:38]} 36. Kh2 {[%emt 0:00:24]} b4 {[%emt 0:00:42]} 37. Qg3 {[%emt 0:01:06]} Kg7 {[%emt 0:00:06]} 38. h4 {[%emt 0:00:59]} a1=Q {[%emt 0:06:15]} 39. h5 {[%emt 0:00:11]} g5 {[%emt 0:00:03]} 40. Qd3 {[%emt 0:00:00]} Ne4 {[%emt 0:00:00]} 41. Qxe4 {[%emt 0:01:07]} Qe5+ {[%emt 0:00:10]} 42. Qxe5 {[%emt 0:00:07]} fxe5 {[%emt 0:00:05]} 43. Kg3 {[%emt 0:00:06]} Rxc2 {[%emt 0:00:13]} 44. Kg4 {[%emt 0:00:22]} Rxg2+ {[%emt 0:01:04]} 45. Kf5 {[%emt 0:00:18]} b3 {[%emt 0:00:22]} 46. h6+ {[%emt 0:00:13]} Kxh6 {[%emt 0:00:06]} 47. Kxe5 {[%emt 0:00:11]} b2 {[%emt 0:00:07]} 48. Kd5 {[%emt 0:00:18]} b1=Q {[%emt 0:00:33]} 49. Kc6 {[%emt 0:00:30]} Rc2+ {[%emt 0:00:21]} 50. Kd7 {[%emt 0:00:16]} Qb7+ {[%emt 0:00:07]} 51. Ke8 {[%emt 0:00:12]} Kg7 {[%emt 0:00:17]} 52. Kd8 {[%emt 0:00:15]} Rc8# {[%emt 0:00:04]} 0-1

[Event "EYCC Open U8 2018"]
[Site "Riga"]
[Date "2018.08.26"]
[Round "6"]
[White "Gordeev, Denis"]
[Black "Yasmo, Daniil"]
[Result "1-0"]
[ECO "B01"]
[WhiteElo "1333"]
[BlackElo "1261"]
[Annotator "NA"]
[PlyCount "91"]
[EventDate "2018.08.20"]
[EventType "swiss"]
[EventCountry "LAT"]
[SourceTitle "playchess.com"]
[Source "ChessBase"]
[SourceQuality "1"]
[TimeControl "40/5400+30:1800+30"]

1. e4 {[%emt 0:00:00]} d5 {[%emt 0:00:00]} 2. exd5 {[%emt 0:00:00]} Qxd5 {[%emt 0:00:00]} 3. Nc3 {[%emt 0:00:04]} Qd6 {[%emt 0:00:00]} 4. d4 {[%emt 0:01:07]} Nf6 {[%emt 0:01:02]} 5. Nf3 {[%emt 0:00:38]} a6 {[%emt 0:00:31]} 6. g3 {[%emt 0:03:01]} Bg4 {[%emt 0:01:02]} 7. Bg2 {[%emt 0:01:13]} Nc6 {[%emt 0:01:13]} 8. O-O {[%emt 0:02:02]} O-O-O {[%emt 0:02:46]} 9. d5 {[%emt 0:02:19]} Ne5 {[%emt 0:02:27]} 10. Bf4 {[%emt 0:02:26]} Nxf3+ {[%emt 0:02:37]} 11. Bxf3 {[%emt 0:02:15]} Bxf3 {[%emt 0:00:36]} 12. Qxf3 {[%emt 0:00:54]} e5 {[%emt 0:00:54]} 13. dxe6 {[%emt 0:01:17]} Qxe6 {[%emt 0:00:08]} 14. Rfe1 {[%emt 0:00:42]} Qf5 {[%emt 0:01:19]} 15. Re5 {[%emt 0:09:41]} Qg4 {[%emt 0:03:05]} 16. Qg2 {[%emt 0:02:04]} h6 {[%emt 0:12:06]} 17. h3 {[%emt 0:03:44]} Qd7 {[%emt 0:00:29]} 18. Ra5 {[%emt 0:04:42]} Kb8 {[%emt 0:17:06]} 19. Rd1 {[%emt 0:03:35]} Qc8 {[%emt 0:01:33]} 20. Rxd8 {[%emt 0:07:28]} Qxd8 {[%emt 0:00:06]} 21. Nd5 {[%emt 0:00:34]} Nxd5 {[%emt 0:07:15]} 22. Rxd5 {[%emt 0:00:04]} Qc8 {[%emt 0:00:00]} 23. Qe4 {[%emt 0:02:32]} Bd6 {[%emt 0:11:26]} 24. Bxd6 {[%emt 0:02:13]} cxd6 {[%emt 0:00:06]} 25. Rxd6 {[%emt 0:01:46]} Re8 {[%emt 0:05:38]} 26. Qf4 {[%emt 0:06:34]} Re1+ {[%emt 0:05:22]} 27. Kg2 {[%emt 0:02:14]} Ka7 {[%emt 0:02:30]} 28. Qd4+ {[%emt 0:00:46]} Kb8 {[%emt 0:00:18]} 29. Rd8 {[%emt 0:00:15]} Re8 {[%emt 0:00:37]} 30. Rxc8+ {[%emt 0:00:46]} Rxc8 {[%emt 0:00:22]} 31. c3 {[%emt 0:00:30]} f6 {[%emt 0:00:12]} 32. Qd6+ {[%emt 0:01:12]} Rc7 {[%emt 0:00:24]} 33. Qf8+ {[%emt 0:00:16]} Ka7 {[%emt 0:00:14]} 34. Qd6 {[%emt 0:01:22]} Rf7 {[%emt 0:00:25]} 35. c4 {[%emt 0:00:13]} b6 {[%emt 0:00:58]} 36. Kf3 {[%emt 0:00:27]} Rb7 {[%emt 0:00:21]} 37. Kf4 {[%emt 0:00:16]} Rf7 {[%emt 0:00:37]} 38. Kf5 {[%emt 0:00:40]} Rb7 {[%emt 0:00:57]} 39. Kg6 {[%emt 0:00:00]} Ka8 {[%emt 0:00:00]} 40. b4 Ka7 {[%emt 0:00:00]} 41. c5 {[%emt 0:02:39]} bxc5 {[%emt 0:01:51]} 42. bxc5 {[%emt 0:00:14]} f5 {[%emt 0:00:43]} 43. c6 {[%emt 0:00:32]} Rb6 {[%emt 0:01:19]} 44. Qc7+ {[%emt 0:00:17]} Ka8 {[%emt 0:00:04]} 45. Qxb6 {[%emt 0:00:36]} a5 {[%emt 0:00:08]} 46. Qb7# {[%emt 0:00:05]} 1-0

[Event "EYCC Open U8 2018"]
[Site "Riga"]
[Date "2018.08.26"]
[Round "6"]
[White "Uskov, Artem"]
[Black "Yonal, Timur"]
[Result "1-0"]
[ECO "B42"]
[WhiteElo "1320"]
[BlackElo "1446"]
[Annotator "NA"]
[PlyCount "115"]
[EventDate "2018.08.20"]
[EventType "swiss"]
[EventCountry "LAT"]
[SourceTitle "playchess.com"]
[Source "ChessBase"]
[SourceQuality "1"]
[TimeControl "40/5400+30:1800+30"]

1. e4 {[%emt 0:00:00]} c5 {[%emt 0:00:00]} 2. Nf3 {[%emt 0:00:10]} e6 {[%emt 0:00:00]} 3. d4 {[%emt 0:01:00]} cxd4 {[%emt 0:00:00]} 4. Nxd4 {[%emt 0:00:54]} a6 {[%emt 0:00:00]} 5. Bd3 {[%emt 0:01:47]} Nc6 {[%emt 0:00:03]} 6. Nb3 {[%emt 0:04:37]} d6 {[%emt 0:03:07]} 7. O-O {[%emt 0:01:14]} Be7 {[%emt 0:00:19]} 8. Be3 {[%emt 0:01:48]} Qc7 {[%emt 0:00:43]} 9. Nc3 {[%emt 0:00:50]} b5 {[%emt 0:00:08]} 10. f4 {[%emt 0:01:20]} Nf6 {[%emt 0:00:19]} 11. h3 {[%emt 0:02:18]} Bb7 {[%emt 0:00:45]} 12. Ne2 {[%emt 0:00:35]} O-O {[%emt 0:02:35]} 13. Ng3 {[%emt 0:03:20]} Rfd8 {[%emt 0:02:17]} 14. Qe2 {[%emt 0:01:29]} Bf8 {[%emt 0:00:34]} 15. Rad1 {[%emt 0:01:38]} Rac8 {[%emt 0:03:55]} 16. a3 {[%emt 0:03:42]} g6 {[%emt 0:14:09]} 17. Qf2 {[%emt 0:02:43]} Nd7 {[%emt 0:00:11]} 18. f5 {[%emt 0:01:32]} Nce5 {[%emt 0:01:23]} 19. Nd2 {[%emt 0:03:50]} Bg7 {[%emt 0:01:04]} 20. Nf3 {[%emt 0:02:45]} Nxf3+ {[%emt 0:00:11]} 21. Qxf3 {[%emt 0:01:42]} Rf8 {[%emt 0:11:05]} 22. fxe6 {[%emt 0:08:00]} fxe6 {[%emt 0:00:22]} 23. Qg4 {[%emt 0:00:06]} Rxf1+ {[%emt 0:01:16]} 24. Rxf1 {[%emt 0:00:50]} Nf8 {[%emt 0:02:05]} 25. b3 {[%emt 0:01:03]} Kh8 {[%emt 0:10:57]} 26. h4 {[%emt 0:03:48]} Qc3 {[%emt 0:08:51]} 27. Ne2 {[%emt 0:01:23]} Qc7 {[%emt 0:02:12]} 28. h5 {[%emt 0:01:20]} e5 {[%emt 0:01:38]} 29. h6 {[%emt 0:00:23]} Re8 {[%emt 0:07:57]} 30. hxg7+ {[%emt 0:00:26]} Qxg7 {[%emt 0:00:13]} 31. Qf3 {[%emt 0:01:10]} Kg8 {[%emt 0:00:58]} 32. Qf6 {[%emt 0:00:32]} Qd7 {[%emt 0:00:59]} 33. Bh6 {[%emt 0:00:07]} Ne6 {[%emt 0:00:25]} 34. c4 {[%emt 0:00:35]} Bc6 {[%emt 0:00:32]} 35. Nc3 {[%emt 0:00:47]} b4 {[%emt 0:05:44]} 36. axb4 {[%emt 0:00:40]} Bb7 {[%emt 0:01:15]} 37. c5 {[%emt 0:00:53]} d5 {[%emt 0:00:22]} 38. exd5 {[%emt 0:00:06]} Nf4 {[%emt 0:00:37]} 39. Bxf4 {[%emt 0:00:22]} exf4 {[%emt 0:00:10]} 40. c6 {[%emt 0:00:00]} Bxc6 {[%emt 0:00:00]} 41. Qxc6 {[%emt 0:00:17]} Qa7+ {[%emt 0:00:56]} 42. Qc5 {[%emt 0:00:12]} Qd7 {[%emt 0:00:23]} 43. Bc4 {[%emt 0:00:16]} Qg7 {[%emt 0:00:27]} 44. d6+ {[%emt 0:00:09]} Kh8 {[%emt 0:00:04]} 45. Rxf4 {[%emt 0:01:34]} Qxc3 {[%emt 0:00:32]} 46. Qd4+ {[%emt 0:00:05]} Qxd4+ {[%emt 0:00:04]} 47. Rxd4 {[%emt 0:00:06]} Kg7 {[%emt 0:00:10]} 48. Bxa6 {[%emt 0:00:08]} Kf6 {[%emt 0:00:13]} 49. b5 {[%emt 0:00:07]} Ke5 {[%emt 0:00:06]} 50. Rd1 {[%emt 0:00:07]} Ke6 {[%emt 0:00:18]} 51. d7 {[%emt 0:00:07]} Rd8 {[%emt 0:00:07]} 52. b6 {[%emt 0:00:06]} Rxd7 {[%emt 0:00:14]} 53. Bc8 {[%emt 0:00:04]} Ke7 {[%emt 0:00:11]} 54. Rxd7+ {[%emt 0:00:27]} Ke8 {[%emt 0:00:07]} 55. b7 {[%emt 0:00:07]} g5 {[%emt 0:00:07]} 56. Rxh7 {[%emt 0:00:07]} g4 {[%emt 0:00:03]} 57. Bf5 {[%emt 0:00:09]} g3 {[%emt 0:00:05]} 58. b8=R# {[%emt 0:00:10]} 1-0

[Event "EYCC Open U8 2018"]
[Site "Riga"]
[Date "2018.08.27"]
[Round "7"]
[White "Azadaliyev, Jahandar"]
[Black "Gordeev, Denis"]
[Result "1-0"]
[ECO "D20"]
[WhiteElo "1732"]
[BlackElo "1333"]
[Annotator "NA"]
[PlyCount "95"]
[EventDate "2018.08.20"]
[EventType "swiss"]
[EventCountry "LAT"]
[SourceTitle "playchess.com"]
[Source "ChessBase"]
[SourceQuality "1"]
[TimeControl "40/5400+30:1800+30"]

1. d4 {[%emt 0:00:00]} d5 {[%emt 0:00:00]} 2. c4 {[%emt 0:00:00]} dxc4 {[%emt 0:00:00]} 3. e3 {[%emt 0:00:00]} e5 {[%emt 0:00:09]} 4. Bxc4 {[%emt 0:05:33]} exd4 {[%emt 0:00:34]} 5. exd4 {[%emt 0:00:05]} Nf6 {[%emt 0:01:15]} 6. Nf3 {[%emt 0:00:17]} Be7 {[%emt 0:00:48]} 7. O-O O-O {[%emt 0:00:39]} 8. h3 {[%emt 0:00:23]} Nbd7 {[%emt 0:02:19]} 9. Nc3 {[%emt 0:00:15]} Nb6 {[%emt 0:04:32]} 10. Bb3 {[%emt 0:00:51]} c6 {[%emt 0:01:17]} 11. Re1 {[%emt 0:09:40]} Nbd5 {[%emt 0:02:36]} 12. a3 {[%emt 0:00:41]} Re8 {[%emt 0:00:46]} 13. Qc2 {[%emt 0:00:54]} h6 {[%emt 0:06:05]} 14. Bd2 {[%emt 0:00:46]} Be6 {[%emt 0:00:16]} 15. Bxh6 {[%emt 0:09:48]} Qd6 {[%emt 0:27:00]} 16. Bd2 {[%emt 0:01:29]} Nd7 {[%emt 0:04:53]} 17. Nxd5 {[%emt 0:07:46]} Bxd5 {[%emt 0:03:16]} 18. Bb4 {[%emt 0:00:52]} Qf6 {[%emt 0:01:34]} 19. Bxe7 {[%emt 0:01:02]} Rxe7 {[%emt 0:00:42]} 20. Bxd5 {[%emt 0:01:07]} cxd5 {[%emt 0:00:22]} 21. Qb3 Nb6 {[%emt 0:01:25]} 22. Rxe7 {[%emt 0:00:43]} Qxe7 {[%emt 0:00:10]} 23. Re1 {[%emt 0:02:08]} Qd6 {[%emt 0:00:25]} 24. Ne5 {[%emt 0:00:35]} Rc8 {[%emt 0:01:08]} 25. Qf3 {[%emt 0:01:37]} Qf8 {[%emt 0:02:17]} 26. Qf5 {[%emt 0:02:18]} Rc7 {[%emt 0:01:57]} 27. Re3 {[%emt 0:00:28]} Re7 {[%emt 0:01:06]} 28. Rg3 {[%emt 0:00:40]} Re6 {[%emt 0:03:39]} 29. Rg4 {[%emt 0:01:15]} Rh6 {[%emt 0:01:08]} 30. Qg5 {[%emt 0:00:36]} Rh7 {[%emt 0:00:52]} 31. Rf4 {[%emt 0:02:36]} f6 {[%emt 0:00:56]} 32. Qg4 {[%emt 0:01:03]} Qe8 {[%emt 0:01:10]} 33. Rxf6 {[%emt 0:00:31]} Qe7 {[%emt 0:03:35]} 34. Re6 {[%emt 0:00:13]} Qf8 {[%emt 0:00:30]} 35. Ng6 {[%emt 0:00:08]} Qd8 {[%emt 0:01:26]} 36. Ne7+ {[%emt 0:00:07]} Kh8 {[%emt 0:00:17]} 37. Qe2 {[%emt 0:00:18]} Rh6 {[%emt 0:01:51]} 38. Rxh6+ {[%emt 0:00:06]} gxh6 {[%emt 0:00:08]} 39. Qe5+ {[%emt 0:00:01]} Kh7 {[%emt 0:00:18]} 40. Qf5+ {[%emt 0:00:00]} Kg7 {[%emt 0:00:00]} 41. Qg6+ {[%emt 0:00:24]} Kf8 {[%emt 0:01:03]} 42. Nf5 {[%emt 0:00:02]} Qc7 {[%emt 0:00:24]} 43. Qxh6+ {[%emt 0:00:17]} Kg8 {[%emt 0:01:00]} 44. Qg5+ {[%emt 0:00:19]} Kf8 {[%emt 0:00:14]} 45. Qf6+ {[%emt 0:00:14]} Kg8 {[%emt 0:00:42]} 46. Ne7+ {[%emt 0:00:08]} Kh7 {[%emt 0:00:08]} 47. Qg6+ {[%emt 0:00:07]} Kh8 {[%emt 0:00:06]} 48. Qg8# {[%emt 0:00:11]} 1-0

[Event "EYCC Open U8 2018"]
[Site "Riga"]
[Date "2018.08.27"]
[Round "7"]
[White "Golovchenko, Bogdan"]
[Black "Averin, Nikolay"]
[Result "1-0"]
[ECO "B02"]
[WhiteElo "1560"]
[BlackElo "1438"]
[Annotator "NA"]
[PlyCount "161"]
[EventDate "2018.08.20"]
[EventType "swiss"]
[EventCountry "LAT"]
[SourceTitle "playchess.com"]
[Source "ChessBase"]
[SourceQuality "1"]
[TimeControl "40/5400+30:1800+30"]

1. e4 {[%emt 0:00:00]} Nf6 {[%emt 0:00:00]} 2. Nc3 {[%emt 0:00:00]} d5 {[%emt 0:00:00]} 3. e5 {[%emt 0:00:00]} Nfd7 {[%emt 0:00:00]} 4. e6 {[%emt 0:00:00]} fxe6 {[%emt 0:00:00]} 5. d4 {[%emt 0:00:04]} g6 {[%emt 0:03:09]} 6. h4 {[%emt 0:00:59]} Nf6 {[%emt 1:01:28]} 7. h5 {[%emt 0:00:32]} Rg8 {[%emt 0:04:18]} 8. hxg6 {[%emt 0:03:09]} hxg6 {[%emt 0:00:07]} 9. Nf3 {[%emt 0:01:16]} Nc6 {[%emt 0:04:19]} 10. Bb5 {[%emt 0:00:34]} Qd6 {[%emt 0:01:42]} 11. Ne5 {[%emt 0:00:54]} g5 {[%emt 0:06:25]} 12. Qd3 {[%emt 0:05:47]} Bd7 {[%emt 0:06:30]} 13. Bxc6 {[%emt 0:00:20]} Bxc6 {[%emt 0:00:44]} 14. Be3 {[%emt 0:02:21]} Bd7 {[%emt 0:02:23]} 15. Rh8 {[%emt 0:03:01]} Rxh8 {[%emt 0:04:50]} 16. Qg6+ {[%emt 0:00:06]} Kd8 {[%emt 0:00:09]} 17. Nf7+ {[%emt 0:00:08]} Kc8 {[%emt 0:00:14]} 18. Nxd6+ {[%emt 0:00:08]} cxd6 {[%emt 0:00:10]} 19. O-O-O {[%emt 0:00:26]} Rg8 {[%emt 0:00:56]} 20. Qd3 {[%emt 0:00:38]} a6 {[%emt 0:00:37]} 21. f3 {[%emt 0:04:50]} Kb8 {[%emt 0:00:31]} 22. g4 {[%emt 0:00:15]} Ka7 {[%emt 0:00:25]} 23. Qd2 {[%emt 0:00:11]} Bh6 {[%emt 0:00:46]} 24. Ne2 {[%emt 0:02:29]} Raf8 {[%emt 0:00:47]} 25. Rh1 {[%emt 0:01:12]} Rh8 {[%emt 0:00:24]} 26. Ng3 {[%emt 0:02:38]} Be8 {[%emt 0:00:52]} 27. Bxg5 {[%emt 0:04:05]} Bxg5 {[%emt 0:00:04]} 28. Qxg5 {[%emt 0:00:07]} Rxh1+ {[%emt 0:00:10]} 29. Nxh1 {[%emt 0:00:04]} Rh8 {[%emt 0:00:13]} 30. Nf2 {[%emt 0:00:02]} Rh2 {[%emt 0:00:20]} 31. Qe3 {[%emt 0:00:17]} Bf7 {[%emt 0:02:06]} 32. Nd3 {[%emt 0:06:19]} Rh1+ {[%emt 0:00:24]} 33. Kd2 {[%emt 0:00:04]} Rh2+ {[%emt 0:00:12]} 34. Kc3 {[%emt 0:00:14]} Rh8 {[%emt 0:00:29]} 35. Nf4 {[%emt 0:01:56]} Rc8+ {[%emt 0:00:26]} 36. Kd2 {[%emt 0:00:40]} Rg8 {[%emt 0:00:43]} 37. c4 {[%emt 0:05:03]} dxc4 {[%emt 0:00:38]} 38. d5+ {[%emt 0:00:17]} Kb8 {[%emt 0:00:12]} 39. dxe6 {[%emt 0:00:11]} Be8 {[%emt 0:00:07]} 40. Ne2 {[%emt 0:00:00]} Bc6 {[%emt 0:00:00]} 41. Nd4 {[%emt 0:04:31]} Bd5 {[%emt 0:01:16]} 42. Nf5 {[%emt 0:01:32]} Re8 {[%emt 0:00:23]} 43. g5 {[%emt 0:03:28]} Ng8 {[%emt 0:01:33]} 44. f4 {[%emt 0:02:51]} Rf8 {[%emt 0:00:16]} 45. Ng7 {[%emt 0:00:50]} Bc6 {[%emt 0:00:27]} 46. Qd4 {[%emt 0:01:01]} Kc7 {[%emt 0:00:38]} 47. f5 {[%emt 0:01:52]} Kd8 {[%emt 0:00:16]} 48. f6 {[%emt 0:02:12]} Nxf6 {[%emt 0:00:14]} 49. gxf6 {[%emt 0:00:04]} Rxf6 {[%emt 0:00:10]} 50. Qxc4 {[%emt 0:03:20]} Rf2+ {[%emt 0:00:11]} 51. Kc1 {[%emt 0:00:50]} Bb5 {[%emt 0:00:38]} 52. Qd4 {[%emt 0:00:41]} Rf1+ {[%emt 0:00:13]} 53. Kc2 {[%emt 0:00:14]} Rh1 {[%emt 0:00:16]} 54. Nf5 {[%emt 0:03:25]} Rh2+ {[%emt 0:00:11]} 55. Kb3 {[%emt 0:00:14]} Rh3+ {[%emt 0:01:25]} 56. Kb4 {[%emt 0:00:16]} Rh7 {[%emt 0:00:04]} 57. Nxd6 {[%emt 0:01:40]} exd6 {[%emt 0:00:41]} 58. Qxd6+ {[%emt 0:00:04]} Bd7 {[%emt 0:00:05]} 59. exd7 {[%emt 0:00:34]} Rxd7 {[%emt 0:00:05]} 60. Qf6+ {[%emt 0:00:17]} Kc7 {[%emt 0:01:38]} 61. Kc5 {[%emt 0:00:18]} Kb8 {[%emt 0:00:36]} 62. Kb6 {[%emt 0:00:14]} Kc8 {[%emt 0:00:16]} 63. Qf8+ {[%emt 0:00:21]} Rd8 {[%emt 0:00:09]} 64. Qc5+ {[%emt 0:00:12]} Kd7 {[%emt 0:00:07]} 65. Kxb7 {[%emt 0:00:14]} a5 {[%emt 0:00:11]} 66. Qxa5 {[%emt 0:00:23]} Ke8 {[%emt 0:00:05]} 67. Qxd8+ {[%emt 0:00:08]} Kxd8 {[%emt 0:00:02]} 68. a4 {[%emt 0:00:01]} Kd7 {[%emt 0:00:02]} 69. a5 {[%emt 0:00:13]} Kd6 {[%emt 0:00:06]} 70. a6 {[%emt 0:00:05]} Kc5 {[%emt 0:00:07]} 71. a7 {[%emt 0:00:05]} Kb4 {[%emt 0:00:03]} 72. a8=Q {[%emt 0:00:11]} Kb3 {[%emt 0:00:08]} 73. Qa3+ {[%emt 0:00:06]} Kc2 {[%emt 0:00:01]} 74. Qc3+ {[%emt 0:00:01]} Kb1 {[%emt 0:00:01]} 75. b4 {[%emt 0:00:19]} Ka2 {[%emt 0:00:03]} 76. Kc6 {[%emt 0:00:05]} Kb1 {[%emt 0:00:01]} 77. Qd2 {[%emt 0:00:48]} Ka1 {[%emt 0:00:14]} 78. Kc5 {[%emt 0:00:06]} Kb1 {[%emt 0:00:06]} 79. Kc4 {[%emt 0:00:09]} Ka1 {[%emt 0:00:17]} 80. Kb3 {[%emt 0:00:01]} Kb1 {[%emt 0:00:05]} 81. Qb2# {[%emt 0:00:04]} 1-0